[Event "*** Titled Tuesday Blitz"]
[Site "Chess.com"]
[Date "2020.04.28"]
[Round "3"]
[White "MichailovM"]
[Black "EddieMarsalla"]
[Result "1-0"]
[WhiteElo "2375"]
[BlackElo "2539"]
[TimeControl "180+1"]
[EndTime "10:29:14 PDT"]
[Termination "MichailovM won by checkmate"]

1. e4 {[%clk 0:03:00.2]} 1... c6 {[%clk 0:02:59.1]} 2. d4 {[%clk 0:02:59.3]}
2... d5 {[%clk 0:03:00]} 3. e5 {[%clk 0:02:59.3]} 3... Bf5 {[%clk 0:02:59.7]} 4.
h4 {[%clk 0:02:59.6]} 4... h5 {[%clk 0:02:58.1]} 5. c4 {[%clk 0:02:59.6]} 5...
e6 {[%clk 0:02:47.7]} 6. Nc3 {[%clk 0:02:59.2]} 6... Ne7 {[%clk 0:02:47.5]} 7.
Nge2 {[%clk 0:02:56.9]} 7... Nd7 {[%clk 0:02:45.9]} 8. Bg5 {[%clk 0:02:56.6]}
8... Qb6 {[%clk 0:02:44]} 9. Rc1 {[%clk 0:02:56]} 9... dxc4 {[%clk 0:02:37.5]}
10. Ng3 {[%clk 0:02:55.4]} 10... Bg6 {[%clk 0:02:37.5]} 11. Bxc4 {[%clk
0:02:54.6]} 11... Qxb2 {[%clk 0:02:16.4]} 12. O-O {[%clk 0:02:50.9]} 12... Nd5
{[%clk 0:02:12.2]} 13. Na4 {[%clk 0:02:00]} 13... Qa3 {[%clk 0:01:59.6]} 14.
Bxd5 {[%clk 0:01:57.9]} 14... exd5 {[%clk 0:01:48.6]} 15. f4 {[%clk 0:01:54.1]}
15... Qxg3 {[%clk 0:01:45.8]} 16. f5 {[%clk 0:01:51.7]} 16... Bxf5 {[%clk
0:01:46]} 17. Rxf5 {[%clk 0:01:48]} 17... Be7 {[%clk 0:01:38]} 18. Bxe7 {[%clk
0:01:36.8]} 18... Kxe7 {[%clk 0:01:38.9]} 19. Qd2 {[%clk 0:01:22.4]} 19... a5
{[%clk 0:01:05.5]} 20. Rcf1 {[%clk 0:01:17.8]} 20... Rhf8 {[%clk 0:01:05.2]} 21.
Rg5 {[%clk 0:00:55.7]} 21... Qxh4 {[%clk 0:00:55.1]} 22. Rxg7 {[%clk 0:00:55.2]}
22... Kd8 {[%clk 0:00:29]} 23. e6 {[%clk 0:00:37.7]} 23... fxe6 {[%clk
0:00:23.5]} 24. Rxf8+ {[%clk 0:00:32.3]} 24... Nxf8 {[%clk 0:00:24.4]} 25. Nc5
{[%clk 0:00:21.4]} 25... Kc8 {[%clk 0:00:15.5]} 26. Qf2 {[%clk 0:00:17.3]} 26...
Nd7 {[%clk 0:00:04.1]} 27. Qxh4 {[%clk 0:00:15]} 27... Nxc5 {[%clk 0:00:03.1]}
28. dxc5 {[%clk 0:00:14.9]} 28... Kb8 {[%clk 0:00:03.2]} 29. Qd8+ {[%clk
0:00:14.4]} 29... Ka7 {[%clk 0:00:03.4]} 30. Qb6+ {[%clk 0:00:14.9]} 30... Kb8
{[%clk 0:00:04]} 31. Qxb7# {[%clk 0:00:15.8]} 1-0

[Event "*** Titled Tuesday Blitz"]
[Site "Chess.com"]
[Date "2020.04.28"]
[Round "3"]
[White "ZEN-22"]
[Black "ulkaf961"]
[Result "1/2-1/2"]
[WhiteElo "2490"]
[BlackElo "2193"]
[TimeControl "180+1"]
[EndTime "10:29:14 PDT"]
[Termination "Game drawn by repetition"]

1. e4 {[%clk 0:03:00.9]} 1... e6 {[%clk 0:03:00.2]} 2. Bc4 {[%clk 0:02:57.7]}
2... d5 {[%clk 0:02:59.7]} 3. Bb3 {[%clk 0:02:58.6]} 3... Nf6 {[%clk 0:02:54.8]}
4. Nc3 {[%clk 0:02:57.6]} 4... d4 {[%clk 0:02:49.3]} 5. e5 {[%clk 0:02:56.7]}
5... dxc3 {[%clk 0:02:46.7]} 6. exf6 {[%clk 0:02:56.4]} 6... Qxf6 {[%clk
0:02:42.6]} 7. dxc3 {[%clk 0:02:55.7]} 7... Bc5 {[%clk 0:02:40]} 8. Nf3 {[%clk
0:02:55.2]} 8... O-O {[%clk 0:02:39.6]} 9. Bg5 {[%clk 0:02:53.5]} 9... Qg6
{[%clk 0:02:34.9]} 10. Qe2 {[%clk 0:02:50.9]} 10... a5 {[%clk 0:02:28.7]} 11. a4
{[%clk 0:02:42]} 11... b6 {[%clk 0:02:28.3]} 12. O-O {[%clk 0:02:37.8]} 12...
Bb7 {[%clk 0:02:22.2]} 13. Bf4 {[%clk 0:02:37.2]} 13... Nd7 {[%clk 0:02:10]} 14.
Bg3 {[%clk 0:02:28.7]} 14... Nf6 {[%clk 0:01:59.5]} 15. Ne5 {[%clk 0:02:25.1]}
15... Qe4 {[%clk 0:01:58]} 16. Qxe4 {[%clk 0:02:19.8]} 16... Nxe4 {[%clk
0:01:58.1]} 17. Nd7 {[%clk 0:02:19.2]} 17... Rfc8 {[%clk 0:01:50.8]} 18. Nxc5
{[%clk 0:02:15.3]} 18... Nxc5 {[%clk 0:01:49.7]} 19. Bc4 {[%clk 0:02:15.6]}
19... Ne4 {[%clk 0:01:43.1]} 20. Rfd1 {[%clk 0:02:14.5]} 20... Nxg3 {[%clk
0:01:41.8]} 21. hxg3 {[%clk 0:02:15.4]} 21... Rd8 {[%clk 0:01:42.2]} 22. f3
{[%clk 0:02:14.7]} 22... Kf8 {[%clk 0:01:41.7]} 23. Kf2 {[%clk 0:02:14.1]} 23...
Ke7 {[%clk 0:01:41.9]} 24. Ke3 {[%clk 0:02:13.8]} 24... Bc6 {[%clk 0:01:16.7]}
25. Rxd8 {[%clk 0:01:42.7]} 25... Rxd8 {[%clk 0:01:15.4]} 26. b4 {[%clk
0:01:43.6]} 26... Ra8 {[%clk 0:01:01.9]} 27. Bb3 {[%clk 0:01:42.9]} 27... f5
{[%clk 0:00:50.1]} 28. b5 {[%clk 0:01:34]} 28... Bb7 {[%clk 0:00:48.7]} 29. Re1
{[%clk 0:01:27.1]} 29... Kf6 {[%clk 0:00:48.4]} 30. Kf2 {[%clk 0:01:22.2]} 30...
e5 {[%clk 0:00:47.5]} 31. g4 {[%clk 0:01:15.1]} 31... fxg4 {[%clk 0:00:42.9]}
32. fxg4 {[%clk 0:01:15.1]} 32... Rd8 {[%clk 0:00:40.2]} 33. Kg3 {[%clk
0:01:13.6]} 33... Rd2 {[%clk 0:00:38]} 34. Rf1+ {[%clk 0:01:13.4]} 34... Ke7
{[%clk 0:00:27.3]} 35. Rf7+ {[%clk 0:01:12]} 35... Kd6 {[%clk 0:00:26.6]} 36.
Rxg7 {[%clk 0:01:05.9]} 36... Rxg2+ {[%clk 0:00:26.7]} 37. Kh3 {[%clk
0:01:06.2]} 37... Rg1 {[%clk 0:00:25.6]} 38. g5 {[%clk 0:00:57.5]} 38... e4
{[%clk 0:00:24]} 39. Rg8 {[%clk 0:00:57.5]} 39... e3 {[%clk 0:00:23.5]} 40. Re8
{[%clk 0:00:55.7]} 40... Re1 {[%clk 0:00:21.6]} 41. Kg3 {[%clk 0:00:53.1]} 41...
Rg1+ {[%clk 0:00:19.8]} 42. Kf4 {[%clk 0:00:52.7]} 42... Rf1+ {[%clk 0:00:17.9]}
43. Kg3 {[%clk 0:00:52.2]} 43... Rg1+ {[%clk 0:00:16.3]} 44. Kh3 {[%clk
0:00:50.8]} 44... Rh1+ {[%clk 0:00:15.1]} 45. Kg4 {[%clk 0:00:47.5]} 45... Rg1+
{[%clk 0:00:15.6]} 46. Kf5 {[%clk 0:00:45.3]} 46... Rf1+ {[%clk 0:00:15.5]} 47.
Kg4 {[%clk 0:00:44.8]} 47... Rg1+ {[%clk 0:00:15.6]} 48. Kh4 {[%clk 0:00:42.1]}
48... Rh1+ {[%clk 0:00:15.4]} 49. Kg3 {[%clk 0:00:42.2]} 49... Rg1+ {[%clk
0:00:15.6]} 1/2-1/2

[Event "*** Titled Tuesday Blitz"]
[Site "Chess.com"]
[Date "2020.04.28"]
[Round "3"]
[White "BakumanFM"]
[Black "Nikolaj_6"]
[Result "0-1"]
[WhiteElo "2248"]
[BlackElo "2606"]
[TimeControl "180+1"]
[EndTime "10:29:14 PDT"]
[Termination "Nikolaj_6 won on time"]

1. e4 {[%clk 0:03:00.9]} 1... c5 {[%clk 0:03:00]} 2. Nf3 {[%clk 0:03:00.8]} 2...
d6 {[%clk 0:02:59.4]} 3. Bb5+ {[%clk 0:03:00]} 3... Bd7 {[%clk 0:02:59]} 4. c4
{[%clk 0:03:00.2]} 4... e5 {[%clk 0:02:56.9]} 5. Nc3 {[%clk 0:02:59.5]} 5... Nc6
{[%clk 0:02:56.9]} 6. O-O {[%clk 0:02:59.8]} 6... g6 {[%clk 0:02:56]} 7. d3
{[%clk 0:02:59.9]} 7... Bg7 {[%clk 0:02:56]} 8. a3 {[%clk 0:02:59.6]} 8... Nge7
{[%clk 0:02:55.8]} 9. Rb1 {[%clk 0:02:59.5]} 9... O-O {[%clk 0:02:51.3]} 10. Be3
{[%clk 0:02:59.9]} 10... Bg4 {[%clk 0:02:45.6]} 11. h3 {[%clk 0:02:59.3]} 11...
Bxf3 {[%clk 0:02:45.3]} 12. Qxf3 {[%clk 0:03:00.2]} 12... Nd4 {[%clk 0:02:44.6]}
13. Bxd4 {[%clk 0:02:53.4]} 13... cxd4 {[%clk 0:02:43.3]} 14. Nd5 {[%clk
0:02:54.3]} 14... Nxd5 {[%clk 0:02:41.4]} 15. exd5 {[%clk 0:02:47.2]} 15... f5
{[%clk 0:02:36.2]} 16. b4 {[%clk 0:02:46.9]} 16... a5 {[%clk 0:02:34.5]} 17. c5
{[%clk 0:02:37.8]} 17... axb4 {[%clk 0:02:30.6]} 18. axb4 {[%clk 0:02:37.7]}
18... Ra3 {[%clk 0:02:30.4]} 19. Qe2 {[%clk 0:02:27.9]} 19... dxc5 {[%clk
0:02:16.3]} 20. bxc5 {[%clk 0:02:28.8]} 20... Kh8 {[%clk 0:02:16.1]} 21. Bc4
{[%clk 0:01:48]} 21... Qc7 {[%clk 0:02:15.1]} 22. Rb5 {[%clk 0:01:45.4]} 22...
Rc3 {[%clk 0:02:07.8]} 23. Rfb1 {[%clk 0:01:38.7]} 23... e4 {[%clk 0:02:07.6]}
24. Rxb7 {[%clk 0:01:34.6]} 24... Qxc5 {[%clk 0:02:06.8]} 25. R7b5 {[%clk
0:01:26]} 25... Qd6 {[%clk 0:01:59.9]} 26. Rb6 {[%clk 0:01:12.9]} 26... exd3
{[%clk 0:01:54.9]} 27. Rxd6 {[%clk 0:01:12.5]} 27... dxe2 {[%clk 0:01:54.5]} 28.
Bxe2 {[%clk 0:01:13.4]} 28... d3 {[%clk 0:01:54.3]} 29. Bf3 {[%clk 0:01:13.7]}
29... d2 {[%clk 0:01:53.5]} 30. Rd1 {[%clk 0:01:14.3]} 30... Rc1 {[%clk
0:01:51]} 31. Kf1 {[%clk 0:00:33.1]} 31... Bh6 {[%clk 0:01:39.6]} 32. Rc6 {[%clk
0:00:18.5]} 32... Re8 {[%clk 0:01:37]} 33. Re6 {[%clk 0:00:12.9]} 33... Rxe6
{[%clk 0:01:25.7]} 34. dxe6 {[%clk 0:00:13]} 34... Kg7 {[%clk 0:01:26.2]} 35.
Ke2 {[%clk 0:00:13.5]} 35... Kf6 {[%clk 0:01:25]} 36. Bd5 {[%clk 0:00:14]} 36...
Rc5 {[%clk 0:01:22.4]} 37. Ba2 {[%clk 0:00:10.4]} 37... Re5+ {[%clk 0:01:22.1]}
38. Kd3 {[%clk 0:00:10.6]} 38... Re1 {[%clk 0:01:17.3]} 39. Bb3 {[%clk
0:00:10.5]} 39... Ke7 {[%clk 0:01:11.5]} 40. g3 {[%clk 0:00:07.2]} 40... Rxd1
{[%clk 0:00:59.2]} 41. Bxd1 {[%clk 0:00:08.1]} 41... Kxe6 {[%clk 0:00:59.8]} 42.
f4 {[%clk 0:00:07.6]} 42... g5 {[%clk 0:00:59.7]} 43. fxg5 {[%clk 0:00:07.8]}
43... Bxg5 {[%clk 0:01:00.1]} 44. h4 {[%clk 0:00:08]} 44... Bh6 {[%clk
0:00:59.9]} 45. Ke2 {[%clk 0:00:08.2]} 45... Ke5 {[%clk 0:00:59.4]} 46. Kf3
{[%clk 0:00:08.5]} 46... Bf8 {[%clk 0:00:59.3]} 47. Ke3 {[%clk 0:00:07.6]} 47...
Bb4 {[%clk 0:00:58.1]} 48. Bc2 {[%clk 0:00:08]} 48... h6 {[%clk 0:00:58.2]} 49.
h5 {[%clk 0:00:06]} 49... Kf6 {[%clk 0:00:57.7]} 50. Kf4 {[%clk 0:00:04.6]}
50... Bd6+ {[%clk 0:00:57.3]} 51. Ke3 {[%clk 0:00:01.4]} 51... Kg5 {[%clk
0:00:55.2]} 0-1

[Event "*** Titled Tuesday Blitz"]
[Site "Chess.com"]
[Date "2020.04.28"]
[Round "3"]
[White "varacalli"]
[Black "Ashedu66"]
[Result "0-1"]
[WhiteElo "2305"]
[BlackElo "2110"]
[TimeControl "180+1"]
[EndTime "10:29:14 PDT"]
[Termination "Ashedu66 won by checkmate"]

1. e4 {[%clk 0:03:00.9]} 1... e5 {[%clk 0:02:59.2]} 2. Nf3 {[%clk 0:02:58.9]}
2... Nc6 {[%clk 0:02:59.3]} 3. Bc4 {[%clk 0:02:58.8]} 3... Bc5 {[%clk
0:02:58.6]} 4. d3 {[%clk 0:02:58.3]} 4... Nf6 {[%clk 0:02:58.7]} 5. O-O {[%clk
0:02:57.7]} 5... a6 {[%clk 0:02:55.6]} 6. c3 {[%clk 0:02:57.6]} 6... Ba7 {[%clk
0:02:55]} 7. Nbd2 {[%clk 0:02:56.7]} 7... O-O {[%clk 0:02:54.9]} 8. h3 {[%clk
0:02:57]} 8... d5 {[%clk 0:02:54.7]} 9. exd5 {[%clk 0:02:57.2]} 9... Nxd5 {[%clk
0:02:54.8]} 10. Re1 {[%clk 0:02:56.7]} 10... Nf4 {[%clk 0:02:47.4]} 11. Ne4
{[%clk 0:02:48.8]} 11... Na5 {[%clk 0:02:17]} 12. Nxe5 {[%clk 0:02:40.4]} 12...
Nxc4 {[%clk 0:02:14]} 13. dxc4 {[%clk 0:02:38.4]} 13... Qxd1 {[%clk 0:01:49.8]}
14. Rxd1 {[%clk 0:02:39.3]} 14... Ne2+ {[%clk 0:01:47.5]} 15. Kf1 {[%clk
0:02:39.1]} 15... Nxc1 {[%clk 0:01:47.1]} 16. Raxc1 {[%clk 0:02:27.5]} 16... Be6
{[%clk 0:01:45.6]} 17. b3 {[%clk 0:02:24.8]} 17... Rad8 {[%clk 0:01:42.8]} 18.
Nf3 {[%clk 0:02:23.2]} 18... h6 {[%clk 0:01:37.6]} 19. Ke2 {[%clk 0:02:17.7]}
19... Bf5 {[%clk 0:01:30.3]} 20. Ng3 {[%clk 0:02:15.8]} 20... Rfe8+ {[%clk
0:01:27.6]} 21. Kf1 {[%clk 0:02:15.7]} 21... Bg6 {[%clk 0:01:23.2]} 22. Nd4
{[%clk 0:02:09.8]} 22... Kf8 {[%clk 0:01:13.3]} 23. Ngf5 {[%clk 0:02:00.2]}
23... c5 {[%clk 0:01:09.4]} 24. Nxg7 {[%clk 0:01:33.6]} 24... Kxg7 {[%clk
0:01:07.5]} 25. Nf3 {[%clk 0:01:32.1]} 25... Bb8 {[%clk 0:01:03.9]} 26. g4
{[%clk 0:01:09.9]} 26... Bf4 {[%clk 0:01:01.2]} 27. Ra1 {[%clk 0:01:08.6]} 27...
Bd3+ {[%clk 0:00:59.1]} 28. Kg2 {[%clk 0:01:08.1]} 28... Be2 {[%clk 0:00:48.7]}
29. Rxd8 {[%clk 0:01:05.2]} 29... Rxd8 {[%clk 0:00:46.6]} 30. Re1 {[%clk
0:01:04.9]} 30... Bxf3+ {[%clk 0:00:44]} 31. Kxf3 {[%clk 0:01:05.8]} 31... Bg5
{[%clk 0:00:42.4]} 32. Kg3 {[%clk 0:00:59.9]} 32... Rd3+ {[%clk 0:00:37.1]} 33.
f3 {[%clk 0:00:58.9]} 33... Rxc3 {[%clk 0:00:37]} 34. h4 {[%clk 0:00:59]} 34...
Bf6 {[%clk 0:00:35.5]} 35. Re2 {[%clk 0:00:57.9]} 35... a5 {[%clk 0:00:29.7]}
36. Rd2 {[%clk 0:00:58.1]} 36... Be5+ {[%clk 0:00:28.3]} 37. Kg2 {[%clk
0:00:56.9]} 37... Bd4 {[%clk 0:00:28.3]} 38. Re2 {[%clk 0:00:55]} 38... Re3
{[%clk 0:00:28.2]} 39. Rd2 {[%clk 0:00:55.5]} 39... Kf6 {[%clk 0:00:26.6]} 40.
Kg3 {[%clk 0:00:55.3]} 40... Ke5 {[%clk 0:00:26.2]} 41. h5 {[%clk 0:00:54.8]}
41... f6 {[%clk 0:00:26.3]} 42. Kg2 {[%clk 0:00:51.2]} 42... Kf4 {[%clk
0:00:25.5]} 43. Rd1 {[%clk 0:00:51]} 43... Re2+ {[%clk 0:00:24.5]} 44. Kh3
{[%clk 0:00:50.7]} 44... Kxf3 {[%clk 0:00:22.1]} 45. Rf1+ {[%clk 0:00:51.4]}
45... Rf2 {[%clk 0:00:21.6]} 46. Re1 {[%clk 0:00:52]} 46... Be5 {[%clk 0:00:21]}
47. Rh1 {[%clk 0:00:51]} 47... Rxa2 {[%clk 0:00:20.7]} 48. Rf1+ {[%clk
0:00:50.5]} 48... Rf2 {[%clk 0:00:19.8]} 49. Rh1 {[%clk 0:00:51]} 49... Bf4
{[%clk 0:00:19.5]} 50. g5 {[%clk 0:00:51.9]} 50... fxg5 {[%clk 0:00:19.1]} 51.
b4 {[%clk 0:00:52.8]} 51... g4+ {[%clk 0:00:18.7]} 52. Kh4 {[%clk 0:00:53.5]}
52... cxb4 {[%clk 0:00:18.1]} 53. c5 {[%clk 0:00:53.9]} 53... Rh2+ {[%clk
0:00:17.3]} 54. Rxh2 {[%clk 0:00:54]} 54... Bxh2 {[%clk 0:00:17.5]} 55. c6
{[%clk 0:00:54.9]} 55... Bg3# {[%clk 0:00:17.4]} 0-1

[Event "*** Titled Tuesday Blitz"]
[Site "Chess.com"]
[Date "2020.04.28"]
[Round "3"]
[White "MRBigtimer"]
[Black "awesomevishesh"]
[Result "1-0"]
[WhiteElo "2310"]
[BlackElo "2514"]
[TimeControl "180+1"]
[EndTime "10:29:17 PDT"]
[Termination "MRBigtimer won by resignation"]

1. e4 {[%clk 0:03:00.9]} 1... c5 {[%clk 0:02:59.6]} 2. Nf3 {[%clk 0:02:57.9]}
2... d6 {[%clk 0:02:59.5]} 3. Bb5+ {[%clk 0:02:57.9]} 3... Nd7 {[%clk
0:02:58.8]} 4. O-O {[%clk 0:02:56.6]} 4... a6 {[%clk 0:02:56.2]} 5. Bxd7+ {[%clk
0:02:56]} 5... Bxd7 {[%clk 0:02:55.8]} 6. d4 {[%clk 0:02:55.7]} 6... cxd4 {[%clk
0:02:54.4]} 7. Qxd4 {[%clk 0:02:56.6]} 7... e5 {[%clk 0:02:45.5]} 8. Qe3 {[%clk
0:02:53.8]} 8... b5 {[%clk 0:02:38.9]} 9. b3 {[%clk 0:02:42]} 9... Nf6 {[%clk
0:02:34.8]} 10. Bb2 {[%clk 0:02:42]} 10... Be7 {[%clk 0:02:32.3]} 11. Nbd2
{[%clk 0:02:42.1]} 11... O-O {[%clk 0:02:29.6]} 12. c4 {[%clk 0:02:41.9]} 12...
Qc7 {[%clk 0:02:21.6]} 13. Rac1 {[%clk 0:02:40.4]} 13... Qb7 {[%clk 0:02:21.2]}
14. Rfe1 {[%clk 0:02:38.4]} 14... Rfc8 {[%clk 0:02:15.7]} 15. h3 {[%clk
0:02:35.3]} 15... h6 {[%clk 0:02:14.7]} 16. Nh4 {[%clk 0:02:26.4]} 16... Be6
{[%clk 0:02:09]} 17. Nf5 {[%clk 0:02:01.1]} 17... Bf8 {[%clk 0:02:01.2]} 18. Qd3
{[%clk 0:01:55.7]} 18... Rc6 {[%clk 0:01:42.2]} 19. cxb5 {[%clk 0:01:37.4]}
19... axb5 {[%clk 0:01:41.6]} 20. Rxc6 {[%clk 0:01:37.3]} 20... Qxc6 {[%clk
0:01:41.2]} 21. Rc1 {[%clk 0:01:37.8]} 21... Qb6 {[%clk 0:01:32.3]} 22. a3
{[%clk 0:01:35.7]} 22... g6 {[%clk 0:01:18.3]} 23. Ne3 {[%clk 0:01:34.7]} 23...
h5 {[%clk 0:01:14]} 24. Nd5 {[%clk 0:01:29.8]} 24... Nxd5 {[%clk 0:01:07]} 25.
exd5 {[%clk 0:01:29.9]} 25... Bf5 {[%clk 0:01:00.5]} 26. Ne4 {[%clk 0:01:29.8]}
26... Be7 {[%clk 0:00:30.8]} 27. Rc6 {[%clk 0:01:26.7]} 27... Qb7 {[%clk
0:00:25.6]} 28. Qe3 {[%clk 0:01:18.2]} 28... Ra6 {[%clk 0:00:13.1]} 29. Rxa6
{[%clk 0:01:09.2]} 29... Qxa6 {[%clk 0:00:12.9]} 30. f3 {[%clk 0:01:09.5]} 30...
Qc8 {[%clk 0:00:09.4]} 31. Qc3 {[%clk 0:01:07.7]} 31... Qb7 {[%clk 0:00:05]} 32.
Qc6 {[%clk 0:01:06.3]} 32... Qa7+ {[%clk 0:00:05.4]} 33. Kf1 {[%clk 0:01:06.4]}
33... Qe3 {[%clk 0:00:04.6]} 34. Qc3 {[%clk 0:01:00.7]} 34... Qf4 {[%clk
0:00:04]} 35. Bc1 {[%clk 0:00:59.8]} 35... Qh2 {[%clk 0:00:03.7]} 36. Be3 {[%clk
0:00:56.5]} 36... Qh1+ {[%clk 0:00:03.8]} 37. Bg1 {[%clk 0:00:56.2]} 37... Bh4
{[%clk 0:00:03.2]} 38. Nxd6 {[%clk 0:00:42.1]} 38... Bxh3 {[%clk 0:00:02.6]} 39.
gxh3 {[%clk 0:00:40.9]} 39... Qxh3+ {[%clk 0:00:02.5]} 40. Ke2 {[%clk
0:00:40.3]} 40... Qg2+ {[%clk 0:00:02.6]} 41. Kd3 {[%clk 0:00:40]} 41... Qxg1
{[%clk 0:00:02.8]} 42. Ne4 {[%clk 0:00:39]} 42... Qf1+ {[%clk 0:00:02.3]} 43.
Kc2 {[%clk 0:00:38.2]} 43... Qxf3 {[%clk 0:00:02.1]} 44. Qxf3 {[%clk 0:00:37.8]}
1-0

[Event "*** Titled Tuesday Blitz"]
[Site "Chess.com"]
[Date "2020.04.28"]
[Round "3"]
[White "GMMarcinDziuba"]
[Black "pheonixking2000"]
[Result "0-1"]
[WhiteElo "2606"]
[BlackElo "2810"]
[TimeControl "180+1"]
[EndTime "10:29:18 PDT"]
[Termination "pheonixking2000 won by resignation"]

1. d4 {[%clk 0:02:58.2]} 1... Nf6 {[%clk 0:03:00]} 2. c4 {[%clk 0:02:58.1]} 2...
e6 {[%clk 0:03:00.4]} 3. Nf3 {[%clk 0:02:57.7]} 3... d5 {[%clk 0:03:00.5]} 4.
Nc3 {[%clk 0:02:57.4]} 4... c6 {[%clk 0:02:58.3]} 5. e3 {[%clk 0:02:56.7]} 5...
Nbd7 {[%clk 0:02:58.2]} 6. Qc2 {[%clk 0:02:56.9]} 6... Bd6 {[%clk 0:02:58]} 7.
Be2 {[%clk 0:02:55.7]} 7... O-O {[%clk 0:02:57.3]} 8. b3 {[%clk 0:02:55.6]} 8...
b6 {[%clk 0:02:57.5]} 9. O-O {[%clk 0:02:53.7]} 9... Bb7 {[%clk 0:02:58.1]} 10.
Bb2 {[%clk 0:02:53.9]} 10... Re8 {[%clk 0:02:58.8]} 11. Rad1 {[%clk 0:02:52]}
11... Qc7 {[%clk 0:02:58]} 12. Rfe1 {[%clk 0:02:47.2]} 12... Rad8 {[%clk
0:02:54.9]} 13. Bf1 {[%clk 0:02:46.7]} 13... a6 {[%clk 0:02:52.7]} 14. g3 {[%clk
0:02:15.9]} 14... e5 {[%clk 0:02:28.4]} 15. cxd5 {[%clk 0:02:12.4]} 15... cxd5
{[%clk 0:02:28.8]} 16. dxe5 {[%clk 0:02:06]} 16... Nxe5 {[%clk 0:02:29.7]} 17.
Nd4 {[%clk 0:02:02]} 17... Ne4 {[%clk 0:02:11.9]} 18. Rc1 {[%clk 0:01:11.7]}
18... Qd7 {[%clk 0:02:03.5]} 19. Nxe4 {[%clk 0:01:07.6]} 19... dxe4 {[%clk
0:02:03.4]} 20. Red1 {[%clk 0:01:07.7]} 20... Bc5 {[%clk 0:01:56.4]} 21. Bg2
{[%clk 0:01:00.3]} 21... Nd3 {[%clk 0:01:54.9]} 22. Rb1 {[%clk 0:00:55.5]} 22...
Qc8 {[%clk 0:01:30.8]} 23. Qe2 {[%clk 0:00:42.5]} 23... a5 {[%clk 0:01:17]} 24.
Ba1 {[%clk 0:00:42.2]} 24... Ba6 {[%clk 0:01:11.8]} 25. Qh5 {[%clk 0:00:40.1]}
25... Re5 {[%clk 0:01:07.2]} 26. Qh4 {[%clk 0:00:39.8]} 26... Be7 {[%clk
0:01:05.4]} 27. Qh3 {[%clk 0:00:34.5]} 27... Qxh3 {[%clk 0:00:53.5]} 28. Bxh3
{[%clk 0:00:35.4]} 28... Red5 {[%clk 0:00:48.7]} 29. Nc6 {[%clk 0:00:22.3]}
29... Re8 {[%clk 0:00:49.2]} 30. Nxe7+ {[%clk 0:00:21.3]} 30... Rxe7 {[%clk
0:00:50.1]} 31. Rd2 {[%clk 0:00:21.5]} 31... f5 {[%clk 0:00:43.1]} 32. Rc2
{[%clk 0:00:19.5]} 32... Nc5 {[%clk 0:00:38.4]} 33. Bd4 {[%clk 0:00:18.2]} 33...
Bd3 {[%clk 0:00:38]} 34. Bxc5 {[%clk 0:00:15.9]} 34... Bxc2 {[%clk 0:00:36.5]}
35. Bxe7 {[%clk 0:00:15.9]} 35... Bxb1 {[%clk 0:00:36.9]} 36. Bf1 {[%clk
0:00:16.3]} 36... b5 {[%clk 0:00:29.8]} 37. Kg2 {[%clk 0:00:14.8]} 37... Bxa2
{[%clk 0:00:28]} 38. b4 {[%clk 0:00:10.3]} 38... a4 {[%clk 0:00:26.6]} 39. g4
{[%clk 0:00:10.8]} 39... Bc4 {[%clk 0:00:26.3]} 40. gxf5 {[%clk 0:00:10.6]}
40... Bxf1+ {[%clk 0:00:25.7]} 0-1

[Event "*** Titled Tuesday Blitz"]
[Site "Chess.com"]
[Date "2020.04.28"]
[Round "3"]
[White "MarcoRiehle"]
[Black "TERMINATOR_PC"]
[Result "0-1"]
[WhiteElo "2576"]
[BlackElo "2402"]
[TimeControl "180+1"]
[EndTime "10:29:18 PDT"]
[Termination "TERMINATOR_PC won by checkmate"]

1. e4 {[%clk 0:03:00.9]} 1... Nf6 {[%clk 0:02:58.5]} 2. e5 {[%clk 0:03:00.4]}
2... Nd5 {[%clk 0:02:58.6]} 3. Nc3 {[%clk 0:03:00.9]} 3... e6 {[%clk 0:02:58.7]}
4. Nxd5 {[%clk 0:03:00.1]} 4... exd5 {[%clk 0:02:59.6]} 5. d4 {[%clk 0:03:01]}
5... d6 {[%clk 0:02:59]} 6. Nf3 {[%clk 0:03:00.7]} 6... Nc6 {[%clk 0:02:59.2]}
7. Bd3 {[%clk 0:02:59.7]} 7... Bg4 {[%clk 0:02:58.7]} 8. O-O {[%clk 0:02:50.9]}
8... Nxd4 {[%clk 0:02:45.7]} 9. Re1 {[%clk 0:02:48]} 9... Nxf3+ {[%clk
0:02:40.8]} 10. gxf3 {[%clk 0:02:47.7]} 10... Be6 {[%clk 0:02:39.5]} 11. f4
{[%clk 0:02:46.7]} 11... g6 {[%clk 0:02:00.7]} 12. Qf3 {[%clk 0:02:23.1]} 12...
Qd7 {[%clk 0:01:43.3]} 13. Bd2 {[%clk 0:02:04.7]} 13... dxe5 {[%clk 0:01:27.3]}
14. fxe5 {[%clk 0:01:59.5]} 14... O-O-O {[%clk 0:01:24.6]} 15. Bg5 {[%clk
0:01:56.9]} 15... Be7 {[%clk 0:01:23.4]} 16. Bf6 {[%clk 0:01:50.8]} 16... Rhe8
{[%clk 0:01:21.5]} 17. Rad1 {[%clk 0:01:48.3]} 17... Bg4 {[%clk 0:01:18.7]} 18.
Qe3 {[%clk 0:01:43.7]} 18... d4 {[%clk 0:01:14.1]} 19. Qf4 {[%clk 0:01:36.8]}
19... Bxd1 {[%clk 0:01:08.8]} 20. Rxd1 {[%clk 0:01:37.7]} 20... Bxf6 {[%clk
0:01:08.3]} 21. exf6 {[%clk 0:01:37.5]} 21... Qd6 {[%clk 0:01:02.8]} 22. Qg4+
{[%clk 0:01:28.7]} 22... Kb8 {[%clk 0:01:02.9]} 23. Bf1 {[%clk 0:01:24.9]} 23...
Qxf6 {[%clk 0:00:59.7]} 24. Bg2 {[%clk 0:01:18.9]} 24... h5 {[%clk 0:00:57.7]}
25. Qg3 {[%clk 0:01:16.3]} 25... Rd6 {[%clk 0:00:36.1]} 26. h3 {[%clk 0:01:12]}
26... Rde6 {[%clk 0:00:31.3]} 27. Rd3 {[%clk 0:00:44.1]} 27... Re1+ {[%clk
0:00:28.2]} 28. Kh2 {[%clk 0:00:44.4]} 28... Qe5 {[%clk 0:00:25.6]} 29. f4
{[%clk 0:00:44.2]} 29... Qd6 {[%clk 0:00:17.2]} 30. c3 {[%clk 0:00:23.3]} 30...
R1e3 {[%clk 0:00:16.8]} 31. Rxe3 {[%clk 0:00:19]} 31... Rxe3 {[%clk 0:00:16.1]}
32. Qg5 {[%clk 0:00:19.4]} 32... d3 {[%clk 0:00:12.1]} 33. Qb5 {[%clk
0:00:17.1]} 33... c6 {[%clk 0:00:10.2]} 34. Qb3 {[%clk 0:00:16.6]} 34... Qxf4+
{[%clk 0:00:09.9]} 35. Kg1 {[%clk 0:00:15.1]} 35... Re1+ {[%clk 0:00:10.2]} 36.
Bf1 {[%clk 0:00:15.2]} 36... Rxf1+ {[%clk 0:00:10.7]} 37. Kg2 {[%clk 0:00:15.5]}
37... Qf2# {[%clk 0:00:11.2]} 0-1